bitfinex-derivatives/quotes_SOLF0:USTF0_20250505
["timestamp","ask_amount","ask_price","bid_price","bid_amount"]
[1746466238960,24.12,145.39,145.3,1.0]
[1746466239258,24.12,145.39,145.3,3.0965]
[1746466239855,6.8803,145.37,145.34,6.8809]
[1746466240246,24.12,145.39,145.35,6.8806]
[1746466240449,24.12,145.39,145.31,2.1628]
[1746466241058,6.8806,145.36,145.34,6.8812]
[1746466241552,6.8806,145.36,145.33,31.0017]
[1746466242153,6.8806,145.36,145.34,6.8813]
[1746466242360,6.8802,145.37,145.33,24.12]
[1746466242761,6.8802,145.37,145.34,6.8813]
[1746466243159,6.8802,145.37,145.33,24.12]
[1746466243661,6.8802,145.37,145.34,6.8813]
[1746466244263,6.8802,145.37,145.35,6.8809]
[1746466244460,6.8805,145.36,145.33,24.12]
[1746466244964,6.8805,145.36,145.34,6.8812]
[1746466247062,6.8814,145.34,145.33,24.12]
[1746466247268,6.8814,145.34,145.3,25.12]
[1746466247766,6.8814,145.34,145.31,6.8824]
[1746466247966,6.8814,145.34,145.3,25.12]
[1746466248166,6.8814,145.34,145.31,6.8824]
[1746466248369,6.8813,145.35,145.3,25.12]
[1746466248560,24.12,145.39,145.3,25.12]
[1746466249669,6.8806,145.36,145.3,25.12]
[1746466250270,6.8806,145.36,145.33,6.8816]
[1746466250469,6.881,145.35,145.33,6.8816]
[1746466251875,24.12,145.39,145.3,25.12]
[1746466252268,6.8821,145.33,145.3,25.12]
[1746466252469,24.12,145.39,145.3,25.12]
[1746466252872,6.8809,145.35,145.32,6.8821]
[1746466253271,6.8807,145.36,145.33,6.8819]
[1746466253475,24.12,145.39,145.33,6.8819]
[1746466253870,6.8802,145.37,145.34,6.8813]
[1746466254276,24.12,145.39,145.3,25.12]
[1746466254477,6.8807,145.36,145.33,6.8817]
[1746466258180,6.8802,145.37,145.34,6.8813]
[1746466258477,24.12,145.39,145.3,25.12]
[1746466259075,6.8807,145.36,145.33,6.8817]
[1746466266286,6.8798,145.38,145.3,25.12]
[1746466266486,24.12,145.42,145.31,15.69163583]
[1746466266688,24.12,145.42,145.36,6.88]
[1746466266887,6.8791,145.39,145.36,6.88]
[1746466267288,6.8794,145.39,145.36,6.88]
[1746466268789,6.8796,145.38,145.36,6.88]
[1746466269088,24.12,145.42,145.36,6.88]
[1746466269289,6.8793,145.39,145.36,6.88]
[1746466269890,6.8788,145.4,145.37,6.8799]
[1746466270187,28.2945,145.44,145.34,35.68413583]
[1746466270486,28.2945,145.44,145.37,6.8797]
[1746466271284,6.8788,145.4,145.37,6.8797]
[1746466272396,6.8788,145.4,145.38,6.8794]
[1746466272683,28.2945,145.44,145.34,35.68413583]
[1746466272889,11.56413583,145.46,145.35,26.2569]
[1746466273189,6.8775,145.43,145.35,26.2569]
[1746466273383,6.8775,145.43,145.36,4.036]
[1746466273588,6.8775,145.43,145.4,6.8781]
[1746466274089,6.8775,145.43,145.41,6.8779]
[1746466274281,6.8768,145.44,145.41,6.8779]
[1746466274482,11.56413583,145.46,145.41,6.8779]
[1746466274679,6.877,145.44,145.41,6.8779]
[1746466274886,11.56413583,145.46,145.4,6.8785]
[1746466275189,11.56413583,145.46,145.39,24.12]
[1746466275390,2.0364,145.45,145.39,24.12]
[1746466275690,11.56413583,145.43,145.36,24.12]
[1746466275889,35.68413583,145.43,145.36,24.12]
[1746466276584,6.8783,145.41,145.38,6.8793]
[1746466277190,6.8786,145.4,145.37,6.8799]
[1746466277492,35.68413583,145.43,145.36,24.12]
[1746466277687,6.8798,145.38,145.36,24.12]
[1746466278293,2.0226,145.42,145.36,31.0004]
[1746466278294,6.8792,145.39,145.36,31.0004]
[1746466278492,2.0226,145.42,145.36,24.12]
[1746466278793,2.0226,145.42,145.36,25.12]
[1746466278995,6.8787,145.4,145.37,6.8798]
[1746466279488,2.0226,145.42,145.37,6.8798]
[1746466279694,6.8783,145.41,145.38,6.8793]
[1746466284294,2.0364,145.45,145.36,25.12]
[1746466284499,24.1,145.46,145.37,6.3651]
[1746466284999,6.8774,145.43,145.37,6.3651]
[1746466285401,24.1,145.46,145.37,6.3651]
[1746466285601,6.8779,145.42,145.37,6.3651]
[1746466286099,24.1,145.46,145.37,6.3651]
[1746466286100,6.877,145.44,145.37,6.3651]
[1746466286396,2.0848,145.48,145.37,6.3651]
[1746466287104,6.8774,145.43,145.4,6.8781]
[1746466287298,6.8774,145.43,145.4,30.9781]
[1746466287499,2.0848,145.48,145.4,30.9781]
[1746466288198,2.0848,145.48,145.4,24.1]
[1746466288403,6.8781,145.41,145.4,24.1]
[1746466289303,6.879,145.4,145.37,30.4651]
[1746466289694,24.1,145.45,145.37,30.4651]
[1746466290507,26.1848,145.48,145.37,30.4651]
[1746466291103,6.8763,145.45,145.37,30.4651]
[1746466291607,6.8763,145.45,145.42,6.8775]
[1746466292108,6.8763,145.45,145.43,6.8771]
[1746466292310,6.8759,145.46,145.43,6.8771]
[1746466292512,26.1848,145.48,145.43,6.8771]
[1746466293112,6.8762,145.45,145.42,6.8774]
[1746466294814,6.8759,145.46,145.43,6.8771]
[1746466295115,26.1848,145.48,145.41,24.1]
[1746466295415,6.8755,145.47,145.44,6.8765]
[1746466296117,6.8757,145.46,145.44,6.8765]
[1746466296913,26.1848,145.48,145.44,6.8765]
[1746466297424,2.1358,145.49,145.45,6.8759]
[1746466297621,2.086,145.52,145.42,35.66413583]
[1746466297819,2.086,145.52,145.43,6.0392]
[1746466298025,6.8741,145.5,145.47,6.875]
[1746466298419,2.086,145.52,145.46,24.1]
[1746466298619,6.8746,145.49,145.46,30.9757]
[1746466299320,6.8746,145.49,145.46,24.1]
[1746466299525,6.8738,145.5,145.46,24.1]
[1746466300027,6.8738,145.5,145.47,6.875]
[1746466300222,6.8743,145.49,145.46,24.1]
[1746466300526,17.77433583,145.55,145.46,30.9753]
[1746466301232,6.8742,145.5,145.46,30.9753]
[1746466301621,17.77433583,145.55,145.46,30.9753]
[1746466301823,6.875,145.48,145.46,24.1]
[1746466302026,17.77433583,145.55,145.46,24.1]
[1746466302323,17.77433583,145.55,145.46,30.9754]
[1746466302926,6.8745,145.49,145.46,30.9754]
[1746466303526,6.874,145.5,145.46,24.1]
[1746466304126,6.874,145.5,145.47,6.8752]
[1746466304726,6.8736,145.51,145.47,6.8752]
[1746466305124,17.77433583,145.55,145.47,6.8752]
[1746466305320,6.8736,145.51,145.47,6.8752]
[1746466305829,6.8736,145.51,145.48,6.8747]
[1746466306330,6.873,145.52,145.46,24.1]
[1746466306924,6.8735,145.51,145.48,6.8745]
[1746466308131,6.8731,145.52,145.49,6.8743]
[1746466308626,6.8731,145.52,145.46,24.1]
[1746466308829,6.8731,145.52,145.48,6.8744]
[1746466309028,6.8735,145.51,145.46,24.1]
[1746466309328,17.77433583,145.55,145.46,24.1]
[1746466309628,6.8734,145.51,145.46,24.1]
[1746466309930,6.8734,145.51,145.48,6.8746]
[1746466310128,6.8733,145.52,145.46,24.1]
[1746466310324,6.8733,145.52,145.49,6.8739]
[1746466310526,41.93433583,145.55,145.46,24.1]
[1746466310828,6.8732,145.52,145.49,6.8741]
[1746466311729,6.8734,145.51,145.49,6.8741]
[1746466311932,6.8734,145.51,145.48,6.8746]
[1746466313431,6.8739,145.5,145.46,24.1]
[1746466313932,6.8739,145.5,145.48,6.8745]
[1746466314123,6.8736,145.51,145.48,6.8745]
[1746466314325,41.93433583,145.55,145.46,24.1]
[1746466314635,6.8732,145.52,145.49,6.874]
[1746466314824,39.82393583,145.55,145.49,6.874]
[1746466315830,6.873,145.52,145.49,6.874]
[1746466316026,6.873,145.52,145.5,6.8737]
[1746466316232,24.16,145.57,145.46,24.1]
[1746466316532,37.9007,145.58,145.46,24.1]
[1746466316737,37.9007,145.58,145.51,6.8732]
[1746466317133,24.16,145.58,145.5,24.16]
[1746466317728,35.72413583,145.58,145.52,6.8726]
[1746466318333,6.8712,145.56,145.53,6.872]
[1746466319330,35.72413583,145.58,145.5,24.16]
[1746466319331,6.8719,145.55,145.5,24.16]
[1746466319530,35.72413583,145.58,145.5,24.16]
[1746466320039,6.8718,145.55,145.52,6.8726]
[1746466320834,6.8718,145.55,145.5,24.16]
[1746466320835,35.72413583,145.58,145.5,24.16]
[1746466321430,6.8727,145.53,145.5,31.0337]
[1746466321629,35.72413583,145.58,145.5,24.16]
[1746466322035,6.8729,145.52,145.5,24.16]
[1746466322238,35.72413583,145.58,145.5,24.16]
[1746466322834,6.8726,145.53,145.5,31.0338]
[1746466323138,35.72413583,145.58,145.5,24.16]
[1746466324235,24.16,145.58,145.5,24.16]
[1746466324439,6.8708,145.57,145.54,6.8719]
[1746466325543,6.8708,145.57,145.53,6.872]
[1746466325734,6.871,145.56,145.53,6.872]
[1746466326343,24.16,145.58,145.5,24.16]
[1746466326344,6.8708,145.57,145.5,24.16]
[1746466326843,6.8708,145.57,145.54,6.8717]
[1746466328142,6.8703,145.58,145.55,6.8714]
[1746466328536,6.8705,145.57,145.54,31.0317]
[1746466328839,35.72413583,145.61,145.54,24.16]
[1746466329039,11.56413583,145.61,145.54,24.16]
[1746466329436,6.8708,145.57,145.54,31.0319]
[1746466331931,6.8708,145.57,145.55,6.8714]
[1746466332344,6.8708,145.57,145.54,24.16]
[1746466332744,6.8708,145.57,145.54,31.0317]
[1746466333044,6.8708,145.57,145.54,24.16]
[1746466333243,6.8708,145.57,145.54,31.0317]
[1746466335245,6.8703,145.58,145.55,6.8713]
[1746466335440,35.72413583,145.61,145.54,24.16]
[1746466336345,6.8708,145.57,145.54,31.0317]
[1746466337246,6.8708,145.57,145.55,6.8714]
[1746466337541,6.8703,145.58,145.55,6.8714]
[1746466338044,6.8698,145.59,145.56,6.8709]
[1746466338341,35.72413583,145.61,145.54,24.16]
[1746466338543,6.8703,145.58,145.55,6.8712]
[1746466339344,6.8706,145.57,145.55,6.8712]
[1746466339541,6.8706,145.57,145.54,24.16]
[1746466339740,35.72413583,145.61,145.54,24.16]
[1746466339941,24.16,145.61,145.54,24.16]
[1746466340446,6.8705,145.57,145.54,24.16]
[1746466340948,6.8705,145.57,145.54,31.0317]
[1746466341747,6.8705,145.57,145.54,32.0317]
[1746466342240,6.8702,145.58,145.55,6.8712]
[1746466342642,6.8702,145.58,145.54,25.16]
[1746466342848,24.16,145.61,145.54,25.16]
[1746466343446,6.8699,145.59,145.56,6.8708]
[1746466343640,24.16,145.61,145.54,25.16]
[1746466343837,11.56413583,145.67,145.54,25.16]
[1746466344041,24.18,145.65,145.55,6.1313]
[1746466345145,64.83229467,145.74,145.55,6.1313]
[1746466345352,89.01229467,145.74,145.59,11.56413583]
[1746466345540,12.80355147,145.73,145.6,26.1807]
[1746466345744,6.8656,145.68,145.64,6.8671]
[1746466345941,6.8656,145.68,145.64,31.0471]
[1746466346155,6.8662,145.67,145.64,24.18]
[1746466346647,35.74413583,145.7,145.61,24.18]
[1746466346845,6.8673,145.64,145.61,24.18]
[1746466347045,6.3649,145.69,145.61,24.18]
[1746466347451,11.56413583,145.67,145.57,2.0998]
[1746466347642,24.18,145.66,145.58,24.18]
[1746466348253,11.56413583,145.64,145.58,24.18]
[1746466348447,11.56413583,145.64,145.55,24.18]
[1746466348650,4.2641,145.63,145.54,25.18]
[1746466348850,11.56413583,145.61,145.54,25.18]
[1746466349048,6.8715,145.55,145.54,1.0]
[1746466349452,6.8712,145.56,145.54,1.0]
[1746466349853,11.56413583,145.61,145.54,1.0]
[1746466350644,6.8699,145.59,145.55,6.871]
[1746466351049,24.18,145.62,145.54,1.0]
[1746466351347,24.18,145.62,145.55,24.18]
[1746466351958,6.8695,145.6,145.56,6.8706]
[1746466352257,24.18,145.62,145.56,6.8706]
[1746466352652,6.8694,145.6,145.57,6.8704]
[1746466352852,24.18,145.62,145.55,26.1532]
[1746466353047,31.0483,145.62,145.59,6.8696]
[1746466353253,6.8683,145.62,145.59,6.8696]
[1746466353451,6.8683,145.62,145.55,28.1522]
[1746466353754,6.8687,145.61,145.58,6.8698]
[1746466354457,6.8683,145.62,145.58,6.8698]
[1746466354659,6.8683,145.62,145.59,6.8696]
[1746466354957,6.8683,145.62,145.55,28.1522]
[1746466355151,6.8683,145.62,145.58,6.8698]
[1746466355659,6.8688,145.61,145.58,6.8698]
[1746466356158,6.8688,145.61,145.57,6.8703]
[1746466356354,6.8688,145.61,145.55,28.1522]
[1746466356659,6.8688,145.61,145.57,6.8702]
[1746466356857,6.8688,145.61,145.55,28.1522]
[1746466357564,6.8688,145.61,145.58,6.8698]
[1746466358361,6.8688,145.61,145.59,6.8696]
[1746466358961,6.8684,145.62,145.59,6.8696]
[1746466359262,24.18,145.65,145.59,6.8696]
[1746466359455,6.8684,145.62,145.59,6.8696]
[1746466360756,24.18,145.65,145.55,28.1522]
[1746466361161,6.8676,145.64,145.61,6.8685]
[1746466361560,4.1148,145.67,145.61,6.8685]
[1746466362461,6.8672,145.64,145.61,6.8685]
[1746466362963,6.8672,145.64,145.6,6.8689]
[1746466363258,6.868,145.63,145.59,24.18]
[1746466363656,6.868,145.63,145.59,31.0492]
[1746466364265,6.868,145.63,145.6,6.869]
[1746466364764,6.8674,145.64,145.6,6.869]
[1746466364967,4.1148,145.67,145.6,6.869]
[1746466365263,6.8678,145.63,145.6,6.869]
[1746466366265,6.8674,145.64,145.6,6.869]
[1746466366863,6.8677,145.63,145.6,6.869]
[1746466367561,6.8684,145.62,145.59,31.0493]
[1746466367763,4.1148,145.67,145.56,24.18]
[1746466368465,4.1148,145.67,145.59,6.8693]
[1746466368967,6.8681,145.63,145.59,6.8693]
[1746466369164,4.1148,145.67,145.58,6.8697]
[1746466369461,6.8676,145.64,145.56,24.18]
[1746466369657,6.8676,145.64,145.6,6.8688]
[1746466370157,6.8677,145.63,145.6,6.8688]
[1746466370352,4.1148,145.67,145.55,22.40379472]
[1746466370557,24.18,145.68,145.55,22.40379472]
[1746466370558,24.18,145.68,145.56,24.18]
[1746466370763,6.8666,145.66,145.56,24.18]
[1746466371267,24.18,145.68,145.56,24.18]
[1746466371665,6.866,145.67,145.56,24.18]
[1746466371864,24.18,145.68,145.56,24.18]
[1746466372066,24.18,145.68,145.56,42.61159472]
[1746466372668,24.18,145.68,145.62,6.8679]
[1746466372860,6.8671,145.65,145.62,6.8679]
[1746466373167,24.18,145.68,145.62,6.8679]
[1746466373368,24.18,145.68,145.6,24.72]
[1746466373564,6.8666,145.66,145.6,24.72]
[1746466374469,6.8666,145.66,145.63,6.8676]
[1746466374867,6.8669,145.65,145.63,6.8676]
[1746466375262,6.8669,145.65,145.6,24.72]
[1746466375467,6.8669,145.65,145.62,6.8679]
[1746466375963,24.18,145.68,145.6,24.72]
[1746466376868,24.18,145.68,145.61,6.8686]
[1746466377467,6.8673,145.64,145.61,6.8686]
[1746466378967,6.8673,145.64,145.6,24.72]
[1746466378968,11.51495336,145.66,145.55,3.9722]
[1746466379162,4.034,145.65,145.57,24.7]
[1746466379363,6.8684,145.62,145.58,6.8697]
[1746466380365,6.8687,145.61,145.58,6.8697]
[1746466380565,4.034,145.65,145.59,6.8694]
[1746466380760,4.034,145.65,145.57,24.7]
[1746466380964,10.901,145.65,145.57,24.7]
[1746466381265,10.901,145.65,145.61,6.8682]
[1746466381472,10.901,145.65,145.57,36.21495336]
[1746466381671,6.867,145.65,145.61,6.8682]
[1746466382171,6.867,145.65,145.62,6.8679]
[1746466382773,24.18,145.68,145.57,36.21495336]
[1746466383273,6.8667,145.66,145.57,36.21495336]
[1746466383874,6.8667,145.66,145.63,6.8674]
[1746466384265,6.8668,145.65,145.63,6.8674]
[1746466384468,40.25395336,145.69,145.61,24.72]
[1746466384974,40.25395336,145.69,145.61,31.5884]
[1746466385478,6.867,145.65,145.61,31.5884]
[1746466385670,6.867,145.65,145.62,6.8682]
[1746466385869,40.25395336,145.69,145.62,6.8682]
[1746466386072,6.8668,145.65,145.62,6.8682]
[1746466387278,6.8665,145.66,145.62,6.8682]
[1746466387482,6.8665,145.66,145.63,6.8677]
[1746466387674,40.25395336,145.69,145.63,6.8677]
[1746466387978,6.8661,145.67,145.61,24.72]
[1746466388178,6.8661,145.67,145.64,6.867]
[1746466388477,6.8663,145.66,145.61,24.72]
[1746466388778,40.25395336,145.69,145.61,24.72]
[1746466389076,6.866,145.67,145.61,24.72]
[1746466389379,6.866,145.67,145.63,6.8674]
[1746466389577,6.866,145.67,145.61,24.72]
[1746466389872,40.25395336,145.69,145.61,24.72]
[1746466390077,6.8664,145.66,145.63,6.8675]
[1746466390578,6.8661,145.67,145.63,6.8675]
[1746466390875,40.25395336,145.69,145.62,6.8678]
[1746466391277,40.25395336,145.69,145.63,6.8677]
[1746466392277,6.8665,145.66,145.63,6.8677]
[1746466393481,6.8669,145.65,145.62,6.8681]
[1746466393979,40.25395336,145.69,145.62,6.8681]
[1746466394373,6.8666,145.66,145.63,6.8677]
[1746466396581,6.8659,145.67,145.64,6.8671]
[1746466396982,28.739,145.69,145.61,24.72]
[1746466397178,6.8657,145.68,145.61,24.72]
[1746466397576,24.72,145.69,145.61,36.23495336]
[1746466397774,6.8654,145.68,145.61,36.23495336]
[1746466398176,31.5849,145.69,145.61,36.23495336]
[1746466398376,6.8649,145.69,145.61,36.23495336]
[1746466398687,36.21495336,145.72,145.66,6.8659]
[1746466398881,36.21495336,145.72,145.61,36.23495336]
[1746466399479,6.8651,145.69,145.61,36.23495336]
[1746466399683,6.8651,145.69,145.67,6.8658]
[1746466399878,6.865,145.69,145.65,24.7]
[1746466400479,6.8651,145.69,145.65,24.7]
[1746466400877,6.8651,145.69,145.67,6.8658]
[1746466401080,6.8653,145.68,145.65,24.7]
[1746466401381,6.8653,145.68,145.66,6.8661]
[1746466402386,24.7,145.72,145.66,6.8661]
[1746466403483,24.7,145.72,145.65,31.5665]
[1746466403879,24.7,145.72,145.65,24.7]
[1746466404186,36.21495336,145.72,145.65,24.7]
[1746466404877,36.21495336,145.72,145.62,24.66]
[1746466405182,11.51495336,145.69,145.6,4.19]
[1746466405386,28.8442,145.68,145.6,8.9458]
[1746466405582,28.8442,145.68,145.61,1.0]
[1746466405785,6.8677,145.63,145.61,1.0]
[1746466405987,28.8442,145.68,145.61,1.0]
[1746466406284,11.51495336,145.66,145.61,1.0]
[1746466406687,6.8682,145.62,145.61,1.0]
[1746466415494,6.8678,145.63,145.61,1.0]
[1746466416996,24.66,145.64,145.61,1.0]
[1746466417694,6.8682,145.62,145.61,1.0]
[1746466430699,36.17495336,145.64,145.55,2.1204]
[1746466430893,4.1592,145.63,145.54,25.66]
[1746466431095,6.2051,145.63,145.54,25.66]
[1746466431297,6.8708,145.57,145.54,32.5317]
[1746466431502,24.66,145.6,145.54,25.66]
[1746466431801,31.5295,145.6,145.57,6.8703]
[1746466432000,24.66,145.6,145.55,2.0518]
[1746466432195,28.8192,145.63,145.55,6.2391]
[1746466432399,6.8689,145.61,145.58,6.8698]
[1746466432900,28.8192,145.63,145.57,6.8703]
[1746466433302,28.8192,145.63,145.55,6.2391]
[1746466433498,6.8691,145.61,145.57,6.8703]
[1746466433698,28.8192,145.63,145.57,6.8703]
[1746466434009,6.8692,145.6,145.57,6.8703]
[1746466434501,6.8691,145.61,145.58,6.87]
[1746466438007,6.8684,145.62,145.59,6.8692]
[1746466439104,15.55775336,145.67,145.55,17.75405336]
[1746466439297,24.58,145.66,145.58,24.58]
[1746466439708,6.8674,145.64,145.61,6.8683]
[1746466440208,6.8677,145.63,145.61,6.8683]
[1746466440607,6.8677,145.63,145.6,6.8689]
[1746466440804,6.8675,145.64,145.58,24.58]
[1746466441303,6.8679,145.63,145.6,6.8689]
[1746466441515,24.58,145.66,145.58,24.58]
[1746466441903,6.8691,145.61,145.58,24.58]
[1746466442104,6.8691,145.61,145.57,6.8703]
[1746466442305,24.58,145.66,145.57,6.8703]
[1746466442509,6.8691,145.61,145.57,6.8703]
[1746466442710,11.51495336,145.64,145.56,6.8708]
[1746466443303,6.8694,145.6,145.57,6.8705]
[1746466443917,6.8689,145.61,145.57,6.8705]
[1746466444320,6.8689,145.61,145.55,30.8191]
[1746466444321,6.8689,145.61,145.58,6.8699]
[1746466445217,6.8691,145.6,145.58,6.8699]
[1746466445919,24.58,145.62,145.55,30.8191]
[1746466446121,24.58,145.65,145.55,42.33405336]
[1746466446328,24.58,145.65,145.58,11.51495336]
[1746466446521,6.8663,145.66,145.63,6.8677]
[1746466446716,24.58,145.69,145.6,6.3404]
[1746466447125,24.58,145.69,145.64,6.8669]
[1746466447519,6.8662,145.67,145.64,6.8669]
[1746466447723,6.8662,145.67,145.65,6.8667]
[1746466447922,6.8662,145.67,145.63,24.58]
[1746466448119,24.58,145.69,145.63,24.58]
[1746466448823,6.8663,145.66,145.64,6.867]
[1746466449025,6.8663,145.66,145.63,24.58]
[1746466449415,6.8663,145.66,145.63,31.4475]
[1746466449620,6.866,145.67,145.63,24.58]
[1746466450221,6.866,145.67,145.64,6.8672]
[1746466450419,6.866,145.67,145.63,24.58]
[1746466450619,6.8656,145.68,145.63,24.58]
[1746466450821,6.8656,145.68,145.65,6.8664]
[1746466451224,6.8658,145.67,145.65,6.8664]
[1746466451725,6.8664,145.66,145.63,24.58]
[1746466453225,6.8668,145.65,145.63,24.58]
[1746466453824,6.8672,145.64,145.63,24.58]
[1746466454021,24.58,145.69,145.63,24.58]
[1746466454527,6.8665,145.66,145.63,24.58]
[1746466454731,24.58,145.69,145.63,24.58]
[1746466455026,24.58,145.69,145.62,6.868]
[1746466456028,6.8667,145.66,145.62,6.868]
[1746466456528,6.8667,145.66,145.63,6.8676]
[1746466456920,6.8667,145.66,145.6,30.9004]
[1746466457121,6.8667,145.66,145.63,6.8676]
[1746466458028,6.8668,145.65,145.62,6.8679]
[1746466458329,24.58,145.69,145.6,30.9004]
[1746466459128,6.8668,145.65,145.62,6.8679]
[1746466459630,6.8665,145.66,145.63,6.8677]
[1746466460430,6.8665,145.66,145.64,6.8672]
[1746466460830,6.8659,145.67,145.6,30.9004]
[1746466461832,6.8659,145.67,145.65,6.8667]
[1746466464134,6.8664,145.66,145.64,6.8669]
[1746466464327,24.58,145.69,145.61,11.51495336]
[1746466464731,31.4452,145.69,145.66,6.8662]
[1746466464933,24.58,145.69,145.66,6.8662]
[1746466465435,6.8656,145.68,145.65,6.8665]
[1746466466229,31.445,145.69,145.61,11.51495336]
[1746466466429,24.58,145.69,145.6,24.56]
[1746466466834,6.8675,145.64,145.6,31.4289]
[1746466467336,11.51495336,145.67,145.6,24.56]
[1746466467534,4.1384,145.66,145.6,24.56]
[1746466468235,6.8679,145.63,145.6,24.56]
[1746466468624,6.8679,145.63,145.61,1.0]
[1746466470637,4.1384,145.66,145.61,7.8683]
[1746466471038,11.51495336,145.67,145.61,7.8683]
[1746466472236,6.8673,145.64,145.61,7.8683]
[1746466473442,11.51495336,145.67,145.61,1.0]
[1746466474235,6.8676,145.64,145.61,7.8686]
[1746466474739,6.8676,145.64,145.61,1.0]
[1746466475238,6.8678,145.63,145.61,1.0]
[1746466477040,6.8682,145.62,145.61,1.0]
[1746466478141,6.8679,145.63,145.61,1.0]
[1746466479138,6.8682,145.62,145.61,1.0]
[1746466479344,3.9912,145.66,145.61,1.0]
[1746466480043,6.868,145.63,145.61,1.0]
[1746466487550,6.868,145.63,145.61,7.8686]
[1746466487952,6.868,145.63,145.61,1.0]
[1746466490059,6.868,145.63,145.61,7.8686]
[1746466490653,6.8682,145.62,145.61,1.0]
[1746466491759,6.8679,145.63,145.61,1.0]
[1746466492061,28.5312,145.66,145.61,1.0]
[1746466492359,6.8682,145.62,145.61,1.0]
[1746466494263,6.8679,145.63,145.61,1.0]
[1746466496062,6.8674,145.64,145.61,7.8686]
[1746466496369,28.5312,145.66,145.61,1.0]
[1746466496666,6.8671,145.65,145.62,6.8681]
[1746466497267,35.3978,145.66,145.62,6.8679]
[1746466497465,28.5312,145.66,145.62,6.8679]
[1746466497972,6.867,145.65,145.62,6.8679]
[1746466498968,6.8672,145.64,145.61,7.8684]
[1746466499166,28.5312,145.66,145.61,1.0]
[1746466499367,6.867,145.65,145.62,6.8679]
[1746466499569,24.54,145.66,145.61,1.0]
[1746466499968,24.54,145.66,145.64,6.867]
[1746466500164,24.46,145.69,145.61,25.46]
[1746466500668,6.8661,145.67,145.61,25.46]
[1746466501871,6.8661,145.67,145.65,6.8665]
[1746466502172,6.8655,145.68,145.61,25.46]
[1746466502371,6.8655,145.68,145.62,4.0541]
[1746466502564,6.8655,145.68,145.66,6.866]
[1746466502760,31.3251,145.69,145.62,4.0541]
[1746466503167,6.8651,145.69,145.67,6.8656]
[1746466503661,6.8647,145.7,145.62,4.0541]
[1746466503865,568.4,145.72,145.67,6.8655]
[1746466504061,6.8651,145.69,145.67,6.8655]
[1746466504266,24.46,145.73,145.69,6.8646]
[1746466504468,15.51355336,145.76,145.65,24.46]
[1746466504469,28.4586,145.76,145.65,24.46]
[1746466504872,28.4586,145.76,145.65,26.6155]
[1746466505071,6.8637,145.72,145.69,6.8647]
[1746466505276,11.51495336,145.74,145.65,26.6155]
[1746466505573,6.8649,145.69,145.67,6.8658]
[1746466505870,6.8649,145.69,145.65,26.6155]
[1746466506074,11.51495336,145.74,145.65,26.6155]
[1746466506374,6.8646,145.7,145.67,6.8658]
[1746466506573,11.51495336,145.74,145.65,26.6155]
[1746466506767,11.51495336,145.74,145.66,6.866]
[1746466506969,11.51495336,145.74,145.65,26.6155]
[1746466507375,6.8647,145.7,145.67,6.8653]